bitfinex-derivatives/quotes_BNBF0:USTF0_20250529
["timestamp","ask_amount","ask_price","bid_price","bid_amount"]
[1748481818187,0.28980467,690.12,688.97,1.048589]
[1748481818392,0.28980467,690.12,688.98,1.04799055]
[1748481818591,0.28980467,690.12,688.92,0.623]
[1748481818891,0.28980467,690.12,688.93,1.04798237]
[1748481819092,0.28980467,690.12,688.94,1.04798275]
[1748481819292,0.28980467,690.12,688.92,0.623]
[1748481819492,0.28980467,690.12,688.93,1.04798328]
[1748481819692,0.28980467,690.12,688.94,1.04798328]
[1748481819892,0.28980467,690.12,688.95,1.04798328]
[1748481820188,0.28980467,690.12,688.96,1.04748589]
[1748481820393,0.28980467,690.12,688.97,1.04748589]
[1748481820594,0.28980467,690.12,688.98,1.04737476]
[1748481820793,0.28980467,690.12,688.92,0.623]
[1748481821094,0.28980467,690.12,688.92,1.08248888]
[1748481821293,0.28980467,690.12,688.93,1.04737351]
[1748481821592,0.28980467,690.12,688.92,1.08248888]
[1748481821593,0.28980467,690.12,688.98,0.45948888]
[1748481821995,0.28980467,690.12,688.92,0.623]
[1748481822390,0.28980467,690.12,688.93,1.04722631]
[1748481822592,0.28980467,690.12,688.94,1.04722631]
[1748481822889,0.28980467,690.12,688.95,1.04708565]
[1748481823090,0.28980467,690.12,688.96,1.04708417]
[1748481823291,0.28980467,690.12,688.97,1.04724716]
[1748481823488,0.28980467,690.12,688.98,1.04723823]
[1748481823690,0.28980467,690.12,688.99,1.04723823]
[1748481823893,0.28980467,690.12,689.0,1.04723823]
[1748481824094,0.28980467,690.12,689.01,1.04723823]
[1748481824292,0.28980467,690.12,689.02,1.04731777]
[1748481824499,0.28980467,690.12,688.92,0.623]
[1748481824693,0.28980467,690.12,688.93,1.04716963]
[1748481824898,0.28980467,690.12,688.94,1.04716963]
[1748481825094,0.28980467,690.12,688.95,1.04721522]
[1748481825294,0.28980467,690.12,688.92,0.623]
[1748481825497,0.28980467,690.12,688.93,1.04719965]
[1748481825795,0.28980467,690.12,688.94,1.04719971]
[1748481826099,0.28980467,690.12,688.92,0.623]
[1748481827101,0.28980467,690.12,688.93,1.04701462]
[1748481827301,0.28980467,690.12,688.92,0.623]
[1748481828201,0.28980467,690.12,688.93,1.04699242]
[1748481828404,0.28980467,690.12,688.94,1.04699242]
[1748481828606,0.28980467,690.12,688.95,1.04699242]
[1748481828800,0.28980467,690.12,688.96,1.04699242]
[1748481829000,0.28980467,690.12,688.97,1.04699242]
[1748481829204,0.28980467,690.12,688.98,1.04711674]
[1748481829403,0.28980467,690.12,688.92,0.623]
[1748481830401,0.28980467,690.12,688.93,1.04719366]
[1748481830709,0.28980467,690.12,688.92,0.623]
[1748481831207,0.28980467,690.12,688.93,1.04721612]
[1748481831505,0.28980467,690.12,688.92,0.623]
[1748481831700,0.28980467,690.12,688.92,1.08248888]
[1748481832301,0.28980467,690.12,688.93,0.45948888]
[1748481833002,0.28980467,690.12,688.94,0.45948888]
[1748481833302,0.28980467,690.12,688.95,1.04732272]
[1748481833604,0.28980467,690.12,688.92,0.623]
[1748481834002,0.28980467,690.12,688.93,1.04752552]
[1748481834205,0.28980467,690.12,688.92,0.623]
[1748481834405,0.28980467,690.12,688.93,1.04746266]
[1748481834607,0.28980467,690.12,688.92,0.623]
[1748481835002,0.28980467,690.12,688.93,1.04719514]
[1748481835206,0.28980467,690.12,688.94,1.04684908]
[1748481835407,0.28980467,690.12,688.92,0.623]
[1748481836107,0.28980467,690.12,688.93,1.04665164]
[1748481836303,0.28980467,690.12,688.94,1.04665164]
[1748481836508,0.28980467,690.12,688.92,0.623]
[1748481836509,0.28980467,690.12,688.95,1.04663588]
[1748481836705,0.28980467,690.12,688.96,1.04663588]
[1748481837003,0.28980467,690.12,688.97,1.04663588]
[1748481837207,0.28980467,690.12,688.98,1.04620275]
[1748481837409,0.28980467,690.12,688.92,0.623]
[1748481837705,0.28980467,690.12,688.93,1.04584932]
[1748481838004,0.28980467,690.12,688.94,1.04506466]
[1748481838209,0.28980467,690.12,688.95,1.04501023]
[1748481838408,0.28980467,690.12,688.96,1.04501023]
[1748481838609,0.28980467,690.12,688.97,1.04501023]
[1748481838805,0.28980467,690.12,688.98,1.04393193]
[1748481839009,0.28980467,690.12,688.92,0.623]
[1748481839408,0.28980467,690.12,688.93,1.0439289]
[1748481839606,0.28980467,690.12,688.94,1.04394232]
[1748481839807,0.28980467,690.12,688.92,0.623]
[1748481841914,0.28980467,690.12,688.93,1.04403215]
[1748481842111,0.28980467,690.12,688.94,1.04388836]
[1748481842313,0.28980467,690.12,688.92,0.623]
[1748481842514,0.28980467,690.12,688.93,1.04386695]
[1748481842813,0.28980467,690.12,688.94,1.04386695]
[1748481843114,0.28980467,690.12,688.95,1.04349794]
[1748481843311,0.28980467,690.12,688.96,1.04349088]
[1748481843511,0.28980467,690.12,688.92,0.623]
[1748481843709,0.28980467,690.12,688.93,1.04349191]
[1748481844114,0.28980467,690.12,688.92,0.623]
[1748481844312,0.28980467,690.12,688.93,1.04372826]
[1748481844510,0.28980467,690.12,688.92,0.623]
[1748481845213,0.28980467,690.12,688.93,1.04321024]
[1748481845413,0.28980467,690.12,688.94,1.04312859]
[1748481845610,0.28980467,690.12,688.95,1.04305062]
[1748481845814,0.28980467,690.12,688.96,1.04304909]
[1748481846015,0.28980467,690.12,688.68,0.45948888]
[1748481846214,0.28980467,690.12,688.69,1.0430384]
[1748481846710,0.28980467,690.12,688.68,0.45948888]
[1748481846909,0.28980467,690.12,688.69,1.04285439]
[1748481847213,0.28980467,690.12,688.7,1.04284598]
[1748481847411,0.28980467,690.12,688.7,0.543]
[1748481848416,0.28980467,690.12,688.71,1.04319781]
[1748481848617,0.28980467,690.12,688.7,0.543]
[1748481848819,0.28980467,690.12,688.71,1.04324475]
[1748481849114,0.28980467,690.12,688.7,0.543]
[1748481850419,0.28980467,690.12,688.71,1.04327706]
[1748481850614,0.28980467,690.12,688.7,0.543]
[1748481850819,0.28980467,690.12,688.71,1.04326482]
[1748481851119,0.28980467,690.12,688.7,0.543]
[1748481851318,0.28980467,690.12,688.71,1.04348657]
[1748481851615,0.28980467,690.12,688.72,1.04350655]
[1748481851814,0.28980467,690.12,688.7,0.543]
[1748481852823,0.28980467,690.12,688.71,1.04354936]
[1748481853118,0.28980467,690.12,688.72,1.0435523]
[1748481853323,0.28980467,690.12,688.73,1.0435523]
[1748481853523,0.28980467,690.12,688.74,1.0435523]
[1748481853720,0.28980467,690.12,688.7,0.543]
[1748481853924,0.28980467,690.12,688.71,1.04379642]
[1748481854124,0.28980467,690.12,688.72,1.04379599]
[1748481854421,0.28980467,690.12,688.73,1.04379599]
[1748481854624,0.28980467,690.12,688.74,1.04379599]
[1748481854822,0.28980467,690.12,688.7,0.543]
[1748481855022,0.28980467,690.12,688.71,1.04384241]
[1748481855323,0.28980467,690.12,688.72,1.0428126]
[1748481855523,0.28980467,690.12,688.73,1.0428126]
[1748481855725,0.28980467,690.12,688.74,1.0428126]
[1748481855924,0.28980467,690.12,688.75,1.04279129]
[1748481856123,0.28980467,690.12,688.7,0.543]
[1748481856319,0.28980467,690.12,688.71,1.04276472]
[1748481856520,0.28980467,690.12,688.7,0.543]
[1748481856922,0.28980467,690.12,688.71,1.0427876]
[1748481857125,0.28980467,690.12,688.72,1.04278882]
[1748481857323,0.28980467,690.12,688.7,0.543]
[1748481857522,0.28980467,690.12,688.71,1.04276901]
[1748481857722,0.28980467,690.12,688.7,0.543]
[1748481858028,0.28980467,690.12,689.06,0.45969878]
[1748481858828,0.28980467,690.12,689.07,0.45969878]
[1748481859025,0.28980467,690.12,689.08,1.04248548]
[1748481859228,0.28980467,690.12,689.09,0.45969878]
[1748481859428,0.28980467,690.12,689.1,0.45969878]
[1748481859628,0.28980467,690.12,689.13,0.45969878]
[1748481859929,0.28980467,690.12,689.14,1.04230625]
[1748481860130,0.28980467,690.12,689.15,1.0423063]
[1748481860329,0.28980467,690.12,689.16,1.04230164]
[1748481860529,0.28980467,690.12,689.13,0.45969878]
[1748481863030,0.28980467,690.12,689.14,1.04197804]
[1748481863229,0.28980467,690.12,689.15,1.04198208]
[1748481863434,0.28980467,690.12,689.13,0.45969878]
[1748481865636,0.28980467,690.12,689.14,1.0427323]
[1748481865835,0.28980467,690.12,689.15,1.04273218]
[1748481866032,0.28980467,690.12,689.13,0.45969878]
[1748481866633,0.28980467,690.12,689.14,1.04271754]
[1748481866838,0.28980467,690.12,689.13,0.45969878]
[1748481867634,0.28980467,690.12,689.14,1.04270562]
[1748481867838,0.28980467,690.12,689.15,1.04270562]
[1748481868037,0.28980467,690.12,689.16,1.04270562]
[1748481868238,0.28980467,690.12,689.17,1.04314529]
[1748481868436,0.28980467,690.12,689.18,1.04314454]
[1748481868738,0.28980467,690.12,689.19,1.0431467]
[1748481868940,0.28980467,690.12,689.2,1.04329494]
[1748481869139,0.28980467,690.12,689.21,1.04329494]
[1748481869340,0.28980467,690.12,689.22,1.04329494]
[1748481869540,0.28980467,690.12,689.23,1.04329494]
[1748481869738,0.28980467,690.12,689.24,1.04329494]
[1748481869939,0.28980467,690.12,689.13,0.45969878]
[1748481870439,0.28980467,690.12,689.14,1.04397542]
[1748481870640,0.28980467,690.12,689.15,1.0439804]
[1748481870839,0.28980467,690.12,689.16,1.0439804]
[1748481871040,0.28980467,690.12,689.17,1.0439804]
[1748481871336,0.28980467,690.12,689.18,1.0439804]
[1748481871533,0.28980467,690.12,689.19,1.0439804]
[1748481871735,0.28980467,690.12,689.2,1.0439804]
[1748481871936,0.28980467,690.12,689.21,1.04416003]
[1748481872141,0.28980467,690.12,689.22,1.04416003]
[1748481872340,0.28980467,690.12,689.23,1.04416057]
[1748481872538,0.28980467,690.12,689.24,1.04416124]
[1748481872739,0.28980467,690.12,689.25,1.04416256]
[1748481872936,0.28980467,690.12,689.26,1.04416256]
[1748481873141,0.28980467,690.12,689.27,1.04416256]
[1748481873341,0.28980467,690.12,689.28,1.04416256]
[1748481873540,0.28980467,690.12,689.29,1.04416256]
[1748481873740,0.28980467,690.12,689.3,1.04481987]
[1748481873941,0.28980467,690.12,689.31,1.04487633]
[1748481874138,0.28980467,690.12,688.87,0.46026134]
[1748481874337,0.28980467,690.12,688.7,0.543]
[1748481874338,0.28980467,690.12,688.88,1.04488932]
[1748481874640,0.28980467,690.12,688.83,0.46026134]
[1748481874842,0.28980467,690.12,688.84,1.04489276]
[1748481875043,0.28980467,690.12,688.85,1.04489276]
[1748481875343,0.28980467,690.12,688.82,0.46026134]
[1748481875545,0.28980467,690.12,688.83,1.04495377]
[1748481875843,0.28980467,690.12,688.82,0.46026134]
[1748481875844,0.28980467,690.12,688.84,1.04497406]
[1748481876143,0.28980467,690.12,688.83,0.46026134]
[1748481876343,0.28980467,690.12,688.84,1.04495689]
[1748481876544,0.28980467,690.12,688.85,1.04495689]
[1748481876745,0.28980467,690.12,688.86,1.04495689]
[1748481876941,0.28980467,690.12,688.87,1.04495689]
[1748481877146,0.28980467,690.12,688.88,1.04495689]
[1748481877341,0.28980467,690.12,688.89,1.04495689]
[1748481877546,0.28980467,690.12,688.85,0.46026134]
[1748481878046,0.28980467,690.12,688.84,0.46026134]
[1748481878247,0.28980467,690.12,688.7,0.543]
[1748481878248,0.28980467,690.12,688.85,1.04509795]
[1748481878445,0.28980467,690.12,688.86,1.04510155]
[1748481878644,0.28980467,690.12,688.87,1.04510155]
[1748481878844,0.28980467,690.12,688.88,1.04510155]
[1748481879049,0.28980467,690.12,688.89,1.04510155]
[1748481879350,0.28980467,690.12,688.9,1.04510155]
[1748481879547,0.28980467,690.12,688.91,1.04509594]
[1748481879848,0.28980467,690.12,688.92,1.04513471]
[1748481880046,0.28980467,690.12,688.93,1.04513471]
[1748481880245,0.28980467,690.12,688.94,1.04513838]
[1748481880445,0.28980467,690.12,688.95,1.04513838]
[1748481880650,0.28980467,690.12,688.96,1.04513838]
[1748481880850,0.28980467,690.12,688.97,1.04518477]
[1748481881149,0.28980467,690.12,688.98,1.04518477]
[1748481881346,0.28980467,690.12,688.7,0.543]
[1748481881347,0.28980467,690.12,688.99,1.04518844]
[1748481881546,0.28980467,690.12,689.0,1.04523722]
[1748481881750,0.28980467,690.12,688.7,0.543]
[1748481882153,0.28980467,690.12,688.71,1.04523619]
[1748481882353,0.28980467,690.12,688.72,1.04523619]
[1748481882650,0.28980467,690.12,688.73,1.04523619]
[1748481882854,0.28980467,690.12,688.74,1.04523619]
[1748481883054,0.28980467,690.12,688.7,0.543]
[1748481883254,0.28980467,690.12,688.71,1.04522815]
[1748481883454,0.28980467,690.12,688.72,1.04521713]
[1748481883650,0.28980467,690.12,688.73,1.04521713]
[1748481883854,0.28980467,690.12,688.59,0.46026134]
[1748481884249,0.28980467,690.12,688.6,1.04510085]
[1748481884452,0.28980467,690.12,688.61,1.04498084]
[1748481884653,0.28980467,690.12,688.59,0.46026134]
[1748481885255,0.28980467,690.12,688.6,1.5052369]
[1748481885558,0.28980467,690.12,688.6,1.20226134]
[1748481886058,0.28980467,690.12,688.61,1.04496667]
[1748481886257,0.28980467,690.12,688.62,1.04496655]
[1748481886557,0.28980467,690.12,688.6,1.20226134]
[1748481887155,0.28980467,690.12,688.61,1.04496388]
[1748481887459,0.28980467,690.12,688.62,1.04498438]
[1748481887651,0.28980467,690.12,688.63,1.04497924]
[1748481887853,0.28980467,690.12,688.61,0.46026134]
[1748481888754,0.28980467,690.12,688.64,0.46026134]
[1748481888953,0.25239705,689.75,688.64,0.46026134]
[1748481889154,0.25239705,689.75,688.65,1.04463424]
[1748481889155,0.28996433,689.74,688.65,1.04463424]
[1748481889459,0.28996433,689.74,688.64,0.46026134]
[1748481889753,0.28996433,689.74,688.65,1.04463361]
[1748481889959,0.28996433,689.74,688.64,0.46026134]
[1748481890259,0.28996433,689.74,688.65,1.50488108]
[1748481890560,0.28996433,689.74,688.65,0.46026134]
[1748481890855,0.28996433,689.74,688.66,1.04462252]
[1748481891059,0.28996433,689.74,688.67,1.04461885]
[1748481891359,0.28996433,689.74,688.66,0.46026134]
[1748481891552,0.28996433,689.74,688.68,0.46026134]
[1748481891758,0.28996433,689.74,688.69,1.04465374]
[1748481891954,0.28996433,689.74,688.69,0.46026134]
[1748481892454,0.28996433,689.74,688.7,0.46026134]
[1748481892855,0.28996433,689.74,688.71,1.50492047]
[1748481893060,0.28996433,689.74,688.71,0.46026134]
[1748481893257,0.28996433,689.74,688.7,0.46026134]
[1748481893559,0.28996433,689.74,688.72,0.46026134]
[1748481893963,0.28996433,689.74,688.73,1.04480007]
[1748481894163,0.28996433,689.74,688.74,1.0447989]
[1748481894463,0.28996433,689.74,688.6,0.742]
[1748481894464,0.28996433,689.74,688.75,1.04480018]
[1748481894759,0.28996433,689.74,688.76,1.0448788]
[1748481895062,0.28996433,689.74,688.77,1.0448788]
[1748481895260,0.28996433,689.74,688.7,0.46026134]
[1748481895458,0.28996433,689.74,688.71,1.04501494]
[1748481895663,0.28996433,689.74,688.72,1.04501494]
[1748481895861,0.28996433,689.74,688.7,0.46026134]
[1748481896062,0.28996433,689.74,688.71,1.04570022]
[1748481896262,0.28996433,689.74,688.72,1.04567795]
[1748481896563,0.28996433,689.74,688.73,1.04567795]
[1748481896757,0.28996433,689.74,688.74,1.04567795]
[1748481896962,0.28996433,689.74,688.75,1.04567795]
[1748481897160,0.28996433,689.74,688.76,1.04567795]
[1748481897460,0.28996433,689.74,688.77,1.04544518]
[1748481897665,0.28996433,689.74,688.78,1.04545929]
[1748481897859,0.28996433,689.74,688.79,1.04545929]
[1748481898064,0.28996433,689.74,688.75,0.46026134]
[1748481898262,0.28996433,689.74,688.76,1.04587221]
[1748481898462,0.28996433,689.74,688.77,1.04654507]
[1748481898661,0.28996433,689.74,688.78,1.04654507]
[1748481898866,0.28996433,689.74,688.79,1.04654507]
[1748481899067,0.28996433,689.74,688.8,1.04655764]
[1748481899267,0.28996433,689.74,688.75,0.46026134]
[1748481899463,0.28996433,689.74,688.76,1.04656726]
[1748481899664,0.28996433,689.74,688.77,1.04642364]
[1748481899866,0.28996433,689.74,688.75,0.46026134]
[1748481900363,0.28996433,689.74,688.76,1.04651274]
[1748481900562,0.28996433,689.74,688.75,0.46026134]
[1748481900761,0.28996433,689.74,688.76,1.04658148]
[1748481901063,0.28996433,689.74,688.77,1.04657561]
[1748481901367,0.28996433,689.74,688.75,0.46026134]
[1748481902271,0.28996433,689.74,688.76,1.04661137]
[1748481902470,0.28996433,689.74,688.77,1.04661137]
[1748481902770,0.28996433,689.74,688.6,0.742]
[1748481902771,0.28996433,689.74,688.61,0.46026134]
[1748481902966,0.28996433,689.74,688.62,1.50781543]
[1748481903169,0.28996433,689.74,688.63,0.46026134]
[1748481903465,0.28996433,689.74,688.62,0.46026134]
[1748481903665,0.28996433,689.74,688.65,0.46026134]
[1748481903871,0.28996433,689.74,688.66,1.04757463]
[1748481904069,0.28996433,689.74,688.65,0.46026134]
[1748481904470,0.28996433,689.74,688.64,0.46026134]
[1748481904772,0.28996433,689.74,688.69,0.46026134]
[1748481905073,0.28996433,689.74,688.7,0.46026134]
[1748481905573,0.28996433,689.74,688.69,0.46026134]
[1748481906168,0.28996433,689.74,688.7,0.46026134]
[1748481906371,0.28996433,689.74,688.71,0.46026134]
[1748481907267,0.28996433,689.74,688.72,1.0477709]
[1748481907572,0.28996433,689.74,688.73,1.0477709]
[1748481907771,0.28996433,689.74,688.74,1.0477709]
[1748481908072,0.28996433,689.74,688.75,1.04746402]
[1748481908267,0.28996433,689.74,688.76,1.04746402]
[1748481908471,0.28996433,689.74,687.62,0.55231361]
[1748481908472,0.28996433,689.74,688.77,1.04746402]
[1748481908672,0.28996433,689.74,688.78,1.0475028]
[1748481908873,0.28996433,689.74,688.79,1.0475028]
[1748481909072,0.28996433,689.74,688.8,1.0475028]
[1748481909268,0.28996433,689.74,688.81,1.04782961]
[1748481909570,0.28996433,689.74,688.82,1.04782961]
[1748481909773,0.28996433,689.74,688.83,1.04782961]
[1748481909969,0.28996433,689.74,688.84,1.04794074]
[1748481910174,0.28996433,689.74,688.85,1.04793845]
[1748481910371,0.28996433,689.74,688.8,0.595]
[1748481910674,0.28996433,689.74,688.81,1.04749428]
[1748481910870,0.28996433,689.74,688.82,1.04749428]
[1748481911176,0.28996433,689.74,688.83,1.04749428]
[1748481911369,0.28996433,689.74,688.84,1.04749428]
[1748481911569,0.28996433,689.74,688.85,1.04734531]
[1748481911772,0.28996433,689.74,688.86,1.04734573]
[1748481911977,0.28996433,689.74,688.87,1.04731625]
[1748481912172,0.28996433,689.74,688.88,1.04731625]
[1748481912375,0.28996433,689.74,688.89,1.0469324]
[1748481912576,0.28996433,689.74,688.9,1.04710949]
[1748481912878,0.28996433,689.74,688.91,1.04710949]
[1748481913177,0.28996433,689.74,688.92,1.04711852]
[1748481913479,0.28996433,689.74,688.93,1.04686838]
[1748481913776,0.28996433,689.74,688.94,1.04695152]
[1748481913977,0.28996433,689.74,688.95,1.04695151]
[1748481914277,0.28996433,689.74,688.96,1.0463092]
[1748481914576,0.28996433,689.74,688.97,1.0463092]
[1748481914777,0.28996433,689.74,688.98,1.0463092]
[1748481915075,0.28996433,689.74,688.99,1.0463092]
[1748481915276,0.28996433,689.74,689.0,1.04635086]
[1748481915577,0.28996433,689.74,689.01,1.04687229]
[1748481915777,0.28996433,689.74,688.8,0.595]
[1748481915973,0.28996433,689.74,688.81,1.04695884]
[1748481916174,0.28996433,689.74,688.8,0.595]
[1748481917276,0.28996433,689.74,688.81,1.04695992]
[1748481917478,0.28996433,689.74,688.82,1.04696241]
[1748481917678,0.28996433,689.74,688.8,0.595]
[1748481917878,0.28996433,689.74,688.81,1.04698335]
[1748481918080,0.28996433,689.74,688.8,0.595]
[1748481918283,0.28996433,689.74,688.81,1.04699377]
[1748481918479,0.28996433,689.74,688.82,1.04698778]
[1748481918674,0.28996433,689.74,688.8,0.595]
[1748481919577,0.28996433,689.74,688.81,1.04740154]
[1748481919777,0.28996433,689.74,688.8,0.595]
[1748481922380,0.28996433,689.74,688.81,1.0476529]
[1748481922581,0.28996433,689.74,688.82,1.0476529]
[1748481922775,0.28996433,689.74,688.8,0.595]
[1748481923080,0.28996433,689.74,688.81,1.04761322]
[1748481923679,0.28996433,689.74,688.82,1.04768217]
[1748481923876,0.28996433,689.74,688.83,1.04768826]
[1748481924076,0.28996433,689.74,688.8,0.595]
[1748481924281,0.28996433,689.74,688.11,0.4603102]
[1748481924581,0.28996433,689.74,688.81,1.04769808]
[1748481924780,0.28996433,689.74,688.11,0.4603102]
[1748481925182,0.28996433,689.74,688.08,0.4603102]
[1748481925377,0.28996433,689.74,688.09,1.04778909]
[1748481925578,0.28996433,689.74,688.08,0.4603102]
[1748481925781,0.28996433,689.74,687.53,0.46026134]
[1748481925782,0.28996433,689.74,688.09,1.04778909]
[1748481926084,0.28996433,689.74,688.1,1.04780856]
[1748481926284,0.28996433,689.74,688.08,0.4603102]
[1748481926578,0.28996433,689.74,688.09,1.50784595]
[1748481926785,0.28996433,689.74,688.09,0.46]
[1748481927287,0.28996433,689.74,688.27,0.4603102]
[1748481927788,0.28996433,689.74,688.28,1.04794807]
[1748481927984,0.28996433,689.74,688.29,1.04794807]
[1748481928286,0.28996433,689.74,688.3,1.04761352]
[1748481928486,0.28996433,689.74,688.31,1.04761352]
[1748481928682,0.28996433,689.74,688.27,0.4603102]
[1748481928887,0.28996433,689.74,688.28,0.4603102]
[1748481929083,0.28996433,689.74,688.29,1.04791574]
[1748481929282,0.28996433,689.74,688.28,0.4603102]
[1748481929484,0.28996433,689.74,688.29,0.4603102]
[1748481929686,0.28996433,689.74,688.09,0.46]
[1748481929687,0.28996433,689.74,688.33,0.4603102]
[1748481929888,0.28996433,689.74,688.34,1.04788275]
[1748481930187,0.28996433,689.74,688.35,1.04745866]
[1748481930489,0.28996433,689.74,688.36,1.04745866]
[1748481930787,0.28996433,689.74,688.37,1.50790047]
[1748481930982,0.28996433,689.74,688.38,1.04753918]
[1748481931184,0.28996433,689.74,688.39,1.04751924]
[1748481931384,0.28996433,689.74,688.4,1.04751924]
[1748481931587,0.28996433,689.74,688.41,1.04751924]
[1748481931788,0.28996433,689.74,688.42,1.04751924]
[1748481931989,0.28996433,689.74,688.43,1.04751924]
[1748481932183,0.28996433,689.74,688.44,1.04751924]
[1748481932388,0.28996433,689.74,688.45,1.04751924]
[1748481932691,0.28996433,689.74,688.46,1.04707239]
[1748481932888,0.28996433,689.74,688.47,1.04707239]
[1748481933189,0.28996433,689.74,688.09,0.46]
[1748481933388,0.28996433,689.74,688.1,1.04705681]
[1748481933588,0.28996433,689.74,688.11,1.04705681]
[1748481933789,0.28996433,689.74,688.12,1.04705681]
[1748481933989,0.28996433,689.74,688.13,1.04705681]
[1748481934188,0.28996433,689.74,688.14,1.04703262]
[1748481934387,0.28996433,689.74,688.15,1.04703262]
[1748481934593,0.28996433,689.74,688.16,1.04703262]
[1748481934886,0.28996433,689.74,688.17,1.04705557]
[1748481935086,0.28996433,689.74,688.18,1.04707217]
[1748481935287,0.28996433,689.74,688.19,1.04707217]
[1748481935484,0.28996433,689.74,688.09,0.46]
[1748481935485,0.28996433,689.74,688.2,1.04707217]
[1748481935690,0.28996433,689.74,688.21,1.04707217]
[1748481935987,0.28996433,689.74,688.22,1.04714266]
[1748481936186,0.28996433,689.74,688.23,1.04714266]
[1748481936391,0.28996433,689.74,688.24,1.04729689]
[1748481936593,0.28996433,689.74,688.25,1.04729689]
[1748481936894,0.28996433,689.74,688.26,1.04737618]
[1748481937194,0.28996433,689.74,688.27,1.04738388]
[1748481937493,0.28996433,689.74,688.28,1.04749018]
[1748481937693,0.28996433,689.74,688.29,1.04749018]
[1748481937893,0.28996433,689.74,688.3,1.04749018]
[1748481938090,0.28996433,689.74,688.31,1.04749018]
[1748481938293,0.28996433,689.74,688.32,1.04793997]
[1748481938494,0.28996433,689.74,688.33,1.04800418]
[1748481938794,0.28996433,689.74,688.34,1.04800586]
[1748481938993,0.28996433,689.74,688.35,1.04800586]
[1748481939290,0.28996433,689.74,688.36,1.04800586]
[1748481939590,0.28996433,689.74,688.37,1.04800586]
[1748481939793,0.28996433,689.74,688.38,1.04800586]
[1748481940090,0.28996433,689.74,688.09,0.46]
[1748481940295,0.28996433,689.74,688.1,1.04874934]
[1748481940593,0.28996433,689.74,688.11,1.04907816]
[1748481940793,0.28996433,689.74,688.12,1.04907855]
[1748481940990,0.28996433,689.74,688.09,0.46]
[1748481941194,0.28996433,689.74,688.1,1.04907855]
[1748481941389,0.28996433,689.74,688.63,0.4603102]
[1748481941591,0.28996433,689.74,688.64,1.04907855]
[1748481941891,0.28996433,689.74,688.65,1.04907855]
[1748481942091,0.28996433,689.74,688.66,1.04802286]
[1748481942290,0.28996433,689.74,688.61,0.4603102]
[1748481942492,0.28996433,689.74,688.62,0.4603102]
[1748481942695,0.28996433,689.74,688.63,0.4603102]
[1748481943195,0.28996433,689.74,688.64,1.0479622]
[1748481943397,0.28996433,689.74,688.63,0.4603102]
[1748481943996,0.28996433,689.74,688.64,1.04780881]
[1748481944192,0.28996433,689.74,688.63,0.4603102]
[1748481944898,0.28996433,689.74,688.64,1.04772306]
[1748481945098,0.28996433,689.74,688.65,1.04772306]
[1748481945398,0.28996433,689.74,688.66,1.04781323]
[1748481945593,0.28996433,689.74,688.67,1.04781191]
[1748481945796,0.28996433,689.74,688.68,1.04781191]
[1748481945997,0.28996433,689.74,688.63,0.4603102]
[1748481946295,0.28996433,689.74,688.64,1.04786931]
[1748481946495,0.28996433,689.74,688.63,0.4603102]
[1748481946798,0.28996433,689.74,688.64,1.04810681]
[1748481946995,0.28996433,689.74,688.65,1.04812813]
[1748481947194,0.28996433,689.74,688.63,0.4603102]
[1748481947394,0.28996433,689.74,688.64,1.04822717]
[1748481947698,0.28996433,689.74,688.65,1.0482298]
[1748481947994,0.28996433,689.74,688.66,1.04823572]
[1748481948199,0.28996433,689.74,688.67,1.04828616]
[1748481948498,0.28996433,689.74,688.68,1.04836956]
[1748481948794,0.28996433,689.74,688.63,0.4603102]
[1748481948999,0.28996433,689.74,688.64,1.04835777]
[1748481949199,0.28996433,689.74,688.63,0.4603102]
[1748481949399,0.28996433,689.74,688.64,1.04836026]
[1748481949597,0.28996433,689.74,688.65,1.04836026]
[1748481949794,0.28996433,689.74,688.66,1.04836026]
[1748481949995,0.28996433,689.74,688.67,1.04834144]
[1748481950195,0.28996433,689.74,688.63,0.4603102]
[1748481950396,0.28996433,689.74,688.64,1.04842319]
[1748481950597,0.28996433,689.74,688.63,0.4603102]
[1748481952097,0.28996433,689.74,688.64,1.68142768]
[1748481952300,0.28996433,689.74,688.64,0.633]
[1748481952802,0.28996433,689.74,688.65,1.04843191]
[1748481953002,0.28996433,689.74,688.66,1.50874151]
[1748481953203,0.28996433,689.74,688.65,0.4603102]
[1748481954600,0.28996433,689.74,688.67,1.04876303]
[1748481954799,0.28996433,689.74,688.64,1.0933102]
[1748481954999,0.28996433,689.74,688.65,1.04921397]
[1748481955197,0.28996433,689.74,688.66,1.04921741]
[1748481955398,0.28996433,689.74,688.64,1.0933102]
[1748481956203,0.28996433,689.74,688.65,1.04961741]
[1748481956401,0.28996433,689.74,688.66,1.04961741]
[1748481956599,0.28996433,689.74,688.67,1.04961741]
[1748481956801,0.28996433,689.74,688.68,1.04961741]
[1748481957000,0.28996433,689.74,688.69,1.04969597]
[1748481957201,0.28996433,689.74,688.64,0.633]
[1748481957505,0.28996433,689.74,688.65,1.04972523]
[1748481957704,0.28996433,689.74,688.66,1.04972523]
[1748481957904,0.28996433,689.74,688.67,1.04972523]